[Event "MČR mládeže v rapid šachu 2024 H10"]
[Site "Harrachov, Czech Republic"]
[Date "????.??.??"]
[Round "1.1"]
[White "Dlouhy Martin"]
[Black "Vo Daniel"]
[Result "0-1"]
[TimeControl "20+5"]
[WhiteFideId "23773200"]
[BlackFideId "23761229"]
[WhiteElo "1648"]
[BlackElo "1679"]

1. Nf3 {[%clk 00:20:08]} {[%emt 00:00:02]} d5 {[%clk 00:20:05]} {[%emt
00:00:06]} 2. c4 {[%clk 00:20:11]} {[%emt 00:00:01]} Nf6 {[%clk 00:20:04]}
{[%emt 00:00:06]} 3. d4 {[%clk 00:20:07]} {[%emt 00:00:09]} dxc4 {[%clk
00:20:02]} {[%emt 00:00:07]} 4. e3 {[%clk 00:20:06]} {[%emt 00:00:05]} Bg4
{[%clk 00:19:58]} {[%emt 00:00:09]} 5. Bxc4 {[%clk 00:19:47]} {[%emt 00:00:24]}
e6 {[%clk 00:20:00]} {[%emt 00:00:04]} 6. Nbd2 {[%clk 00:19:32]} {[%emt
00:00:20]} Nbd7 {[%clk 00:19:46]} {[%emt 00:00:18]} 7. h3 {[%clk 00:19:11]}
{[%emt 00:00:26]} Bh5 {[%clk 00:19:40]} {[%emt 00:00:10]} 8. O-O {[%clk
00:18:26]} {[%emt 00:00:51]} Be7 {[%clk 00:19:14]} {[%emt 00:00:31]} 9. Qb3
{[%clk 00:18:12]} {[%emt 00:00:19]} Nb6 {[%clk 00:19:00]} {[%emt 00:00:19]} 10.
Bd3 {[%clk 00:17:46]} {[%emt 00:00:31]} O-O {[%clk 00:18:15]} {[%emt 00:00:50]}
11. Qc2 {[%clk 00:16:45]} {[%emt 00:01:07]} Nbd5 {[%clk 00:18:07]} {[%emt
00:00:13]} 12. a3 {[%clk 00:15:53]} {[%emt 00:00:57]} c5 {[%clk 00:17:30]}
{[%emt 00:00:42]} 13. Re1 {[%clk 00:13:59]} {[%emt 00:01:59]} Rc8 {[%clk
00:16:50]} {[%emt 00:00:45]} 14. Qb3 {[%clk 00:13:09]} {[%emt 00:00:55]} Qc7
{[%clk 00:16:01]} {[%emt 00:00:54]} 15. Be2 {[%clk 00:11:45]} {[%emt 00:01:29]}
a6 {[%clk 00:14:31]} {[%emt 00:01:35]} 16. Nc4 {[%clk 00:09:56]} {[%emt
00:01:53]} Ne4 {[%clk 00:12:09]} {[%emt 00:02:26]} 17. Bd2 {[%clk 00:08:12]}
{[%emt 00:01:51]} b5 {[%clk 00:11:45]} {[%emt 00:00:29]} 18. Nce5 {[%clk
00:08:03]} {[%emt 00:00:14]} f6 {[%clk 00:11:34]} {[%emt 00:00:16]} 19. g4
{[%clk 00:05:24]} {[%emt 00:02:43]} Be8 {[%clk 00:11:25]} {[%emt 00:00:14]} 20.
Nd3 {[%clk 00:04:29]} {[%emt 00:01:00]} c4 {[%clk 00:11:22]} {[%emt 00:00:09]}
21. Qc2 {[%clk 00:03:56]} {[%emt 00:00:38]} cxd3 {[%clk 00:11:01]} {[%emt
00:00:26]} 22. Qxc7 {[%clk 00:03:40]} {[%emt 00:00:21]} Rxc7 {[%clk 00:10:57]}
{[%emt 00:00:09]} 23. Bxd3 {[%clk 00:03:33]} {[%emt 00:00:11]} Nxd2 {[%clk
00:10:54]} {[%emt 00:00:08]} 24. Nxd2 {[%clk 00:03:30]} {[%emt 00:00:08]} h5
{[%clk 00:10:51]} {[%emt 00:00:07]} 25. a4 {[%clk 00:02:08]} {[%emt 00:01:28]}
Nb4 {[%clk 00:10:45]} {[%emt 00:00:11]} 26. Bb1 {[%clk 00:01:41]} {[%emt
00:00:32]} Nc2 {[%clk 00:10:41]} {[%emt 00:00:08]} 27. Bxc2 {[%clk 00:01:42]}
{[%emt 00:00:05]} Rxc2 {[%clk 00:10:37]} {[%emt 00:00:08]} 28. Red1 {[%clk
00:01:30]} {[%emt 00:00:17]} hxg4 {[%clk 00:10:31]} {[%emt 00:00:11]} 29. hxg4
{[%clk 00:01:31]} {[%emt 00:00:04]} f5 {[%clk 00:10:35]} {[%emt 00:00:01]} 30.
f3 {[%clk 00:01:17]} {[%emt 00:00:19]} fxg4 {[%clk 00:10:32]} {[%emt 00:00:07]}
31. fxg4 {[%clk 00:01:21]} {[%emt 00:00:02]} Bg5 {[%clk 00:10:35]} {[%emt
00:00:01]} 32. Nf1 {[%clk 00:01:01]} {[%emt 00:00:25]} Rxf1+ {[%clk 00:10:06]}
{[%emt 00:00:35]} 33. Kxf1 {[%clk 00:00:45]} {[%emt 00:00:21]} Bxe3 {[%clk
00:10:08]} {[%emt 00:00:03]} 34. Re1 {[%clk 00:00:37]} {[%emt 00:00:13]} Rf2+
{[%clk 00:09:59]} {[%emt 00:00:11]} 35. Kg1 {[%clk 00:00:40]} {[%emt 00:00:05]}
Rxb2+ {[%clk 00:10:02]} {[%emt 00:00:02]} 36. Kh1 {[%clk 00:00:38]} {[%emt
00:00:06]} Bc6+ {[%clk 00:10:05]} {[%emt 00:00:03]} 37. d5 {[%clk 00:00:35]}
{[%emt 00:00:08]} Bxd5# {[%clk 00:10:09]} {[%emt 00:00:01]} 0-1



[ePGN "0.1;DGT LiveChess/2.2.6"]

[Event "MČR mládeže v rapid šachu 2024 H10"]
[Site "Harrachov, Czech Republic"]
[Date "????.??.??"]
[Round "1.2"]
[White "Trejbal Jindrich"]
[Black "Sedenka Zikmund"]
[Result "1-0"]
[TimeControl "20+5"]
[WhiteFideId "23743948"]
[BlackFideId "23761628"]
[WhiteElo "1631"]
[BlackElo "1477"]

1. e4 {[%clk 00:20:08]} {[%emt 00:00:03]} e5 {[%clk 00:20:09]} 2. Nf3 {[%clk
00:20:11]} {[%emt 00:00:01]} Nc6 {[%clk 00:20:12]} {[%emt 00:00:02]} 3. Bc4
{[%clk 00:20:14]} {[%emt 00:00:02]} Nf6 {[%clk 00:20:08]} {[%emt 00:00:09]} 4.
d3 {[%clk 00:20:18]} {[%emt 00:00:01]} Bc5 {[%clk 00:20:09]} {[%emt 00:00:04]}
5. Nc3 {[%clk 00:20:04]} {[%emt 00:00:20]} d6 {[%clk 00:20:11]} {[%emt
00:00:03]} 6. a3 {[%clk 00:19:40]} {[%emt 00:00:29]} Bg4 {[%clk 00:20:04]}
{[%emt 00:00:12]} 7. Be3 {[%clk 00:19:21]} {[%emt 00:00:24]} Bd4 {[%clk
00:19:55]} {[%emt 00:00:14]} 8. h3 {[%clk 00:18:51]} {[%emt 00:00:35]} Bh5
{[%clk 00:19:49]} {[%emt 00:00:10]} 9. Qd2 {[%clk 00:17:59]} {[%emt 00:00:58]}
Qd7 {[%clk 00:19:40]} {[%emt 00:00:14]} 10. Bxd4 {[%clk 00:17:22]} {[%emt
00:00:42]} Nxd4 {[%clk 00:19:35]} {[%emt 00:00:10]} 11. Nxd4 {[%clk 00:17:07]}
{[%emt 00:00:19]} exd4 {[%clk 00:19:37]} {[%emt 00:00:03]} 12. Nd5 {[%clk
00:16:36]} {[%emt 00:00:36]} Nxd5 {[%clk 00:19:35]} {[%emt 00:00:07]} 13. Bxd5
{[%clk 00:16:15]} {[%emt 00:00:26]} O-O-O {[%clk 00:19:08]} {[%emt 00:00:32]}
14. g4 {[%clk 00:16:04]} {[%emt 00:00:16]} Bg6 {[%clk 00:19:08]} {[%emt
00:00:06]} 15. O-O-O {[%clk 00:15:39]} {[%emt 00:00:29]} f6 {[%clk 00:19:09]}
{[%emt 00:00:04]} 16. f4 {[%clk 00:14:16]} {[%emt 00:01:28]} Bf7 {[%clk
00:19:11]} {[%emt 00:00:03]} 17. Bxf7 {[%clk 00:13:53]} {[%emt 00:00:28]} Qxf7
{[%clk 00:19:13]} {[%emt 00:00:03]} 18. Kb1 {[%clk 00:13:57]} {[%emt 00:00:01]}
d5 {[%clk 00:18:58]} {[%emt 00:00:21]} 19. e5 {[%clk 00:13:18]} {[%emt
00:00:44]} fxe5 {[%clk 00:18:55]} {[%emt 00:00:07]} 20. fxe5 {[%clk 00:13:22]}
{[%emt 00:00:01]} Rhe8 {[%clk 00:18:57]} {[%emt 00:00:03]} 21. Rde1 {[%clk
00:13:07]} {[%emt 00:00:20]} Re6 {[%clk 00:18:33]} {[%emt 00:00:29]} 22. Rhf1
{[%clk 00:12:41]} {[%emt 00:00:31]} Qe7 {[%clk 00:18:32]} {[%emt 00:00:06]} 23.
Qb4 {[%clk 00:11:31]} {[%emt 00:01:15]} Qxb4 {[%clk 00:18:22]} {[%emt
00:00:15]} 24. axb4 {[%clk 00:11:33]} {[%emt 00:00:02]} Re7 {[%clk 00:18:21]}
{[%emt 00:00:07]} 25. c3 {[%clk 00:10:38]} {[%emt 00:01:00]} dxc3 {[%clk
00:18:15]} {[%emt 00:00:11]} 26. bxc3 {[%clk 00:10:42]} {[%emt 00:00:01]} Rde8
{[%clk 00:18:15]} {[%emt 00:00:04]} 27. d4 {[%clk 00:10:44]} {[%emt 00:00:03]}
b6 {[%clk 00:18:17]} {[%emt 00:00:03]} 28. Rf2 {[%clk 00:10:27]} {[%emt
00:00:22]} Kb7 {[%clk 00:18:17]} {[%emt 00:00:05]} 29. Ref1 {[%clk 00:10:10]}
{[%emt 00:00:22]} Rg8 {[%clk 00:18:00]} {[%emt 00:00:22]} 30. Rf8 {[%clk
00:09:48]} {[%emt 00:00:28]} Re8 {[%clk 00:17:48]} {[%emt 00:00:17]} 31. Rxe8
{[%clk 00:09:41]} {[%emt 00:00:12]} Rxe8 {[%clk 00:17:51]} {[%emt 00:00:02]} 32.
Rf7 {[%clk 00:09:44]} {[%emt 00:00:02]} Rg8 {[%clk 00:17:53]} {[%emt 00:00:02]}
33. e6 {[%clk 00:09:32]} {[%emt 00:00:17]} Kc8 {[%clk 00:17:45]} {[%emt
00:00:13]} 34. e7 {[%clk 00:09:12]} {[%emt 00:00:25]} Kd7 {[%clk 00:17:43]}
{[%emt 00:00:07]} 35. Rf8 {[%clk 00:09:14]} {[%emt 00:00:03]} Rxf8 {[%clk
00:17:23]} {[%emt 00:00:25]} 36. exf8=Q {[%clk 00:09:11]} {[%emt 00:00:06]} Kc6
{[%clk 00:17:24]} {[%emt 00:00:06]} 37. Qxg7 {[%clk 00:09:13]} {[%emt
00:00:03]} a5 {[%clk 00:17:27]} {[%emt 00:00:02]} 38. bxa5 {[%clk 00:09:04]}
{[%emt 00:00:14]} bxa5 {[%clk 00:17:30]} {[%emt 00:00:02]} 39. Kb2 {[%clk
00:08:53]} {[%emt 00:00:15]} Kb5 {[%clk 00:17:34]} {[%emt 00:00:01]} 40. Qxc7
{[%clk 00:08:53]} {[%emt 00:00:05]} a4 {[%clk 00:17:37]} {[%emt 00:00:02]} 41.
Qc5+ {[%clk 00:08:47]} {[%emt 00:00:11]} Ka6 {[%clk 00:17:38]} {[%emt
00:00:04]} 42. Qxd5 {[%clk 00:08:47]} {[%emt 00:00:05]} Kb6 {[%emt 00:00:05]}
43. Ka3 {[%clk 00:08:47]} {[%emt 00:00:04]} Ka6 {[%clk 00:17:40]} {[%emt
00:00:05]} 44. Kxa4 {[%clk 00:08:49]} {[%emt 00:00:02]} Kb6 {[%clk 00:17:44]}
{[%emt 00:00:01]} 45. Qc5+ {[%clk 00:08:46]} {[%emt 00:00:07]} Kb7 {[%clk
00:17:42]} {[%emt 00:00:08]} 46. Kb5 {[%clk 00:08:39]} {[%emt 00:00:12]} Kb8
{[%clk 00:17:42]} {[%emt 00:00:04]} 47. Kb6 {[%clk 00:08:39]} {[%emt 00:00:05]}
Ka8 {[%clk 00:17:43]} {[%emt 00:00:04]} 48. Qf8# {[%clk 00:08:42]} {[%emt
00:00:02]} 1-0



[ePGN "0.1;DGT LiveChess/2.2.6"]

[Event "MČR mládeže v rapid šachu 2024 H10"]
[Site "Harrachov, Czech Republic"]
[Date "????.??.??"]
[Round "1.4"]
[White "Bukovskij Dmitri"]
[Black "Hovhannisyan Narek"]
[Result "1-0"]
[TimeControl "20+5"]
[WhiteFideId "23749660"]
[BlackFideId "23778024"]
[WhiteElo "1700"]
[BlackElo "1570"]

1. d4 {[%clk 00:20:07]} {[%emt 00:00:02]} d5 {[%clk 00:20:07]} {[%emt
00:00:03]} 2. c4 {[%clk 00:20:12]} c6 {[%clk 00:20:10]} {[%emt 00:00:02]} 3.
cxd5 {[%clk 00:20:15]} {[%emt 00:00:01]} cxd5 {[%clk 00:20:15]} {[%emt
00:00:01]} 4. Nc3 {[%clk 00:20:20]} Nf6 {[%clk 00:20:18]} {[%emt 00:00:02]} 5.
Nf3 {[%clk 00:20:24]} Bf5 {[%clk 00:20:20]} {[%emt 00:00:03]} 6. e3 {[%clk
00:20:24]} {[%emt 00:00:04]} e6 {[%clk 00:20:24]} {[%emt 00:00:01]} 7. a3
{[%clk 00:20:19]} {[%emt 00:00:11]} Bd6 {[%clk 00:20:08]} {[%emt 00:00:21]} 8.
Bb5+ {[%clk 00:19:48]} {[%emt 00:00:36]} Nbd7 {[%clk 00:19:54]} {[%emt
00:00:19]} 9. O-O {[%clk 00:19:47]} {[%emt 00:00:05]} O-O {[%clk 00:19:35]}
{[%emt 00:00:25]} 10. Bd3 {[%clk 00:18:56]} {[%emt 00:00:56]} Bxd3 {[%clk
00:18:16]} {[%emt 00:01:23]} 11. Qxd3 {[%clk 00:19:00]} {[%emt 00:00:01]} Qc7
{[%clk 00:18:14]} {[%emt 00:00:07]} 12. Bd2 {[%clk 00:18:26]} {[%emt 00:00:39]}
a6 {[%clk 00:18:16]} {[%emt 00:00:03]} 13. Rac1 {[%emt 00:02:02]} Qb6 {[%clk
00:16:23]} {[%emt 00:00:01]} 14. Na4 {[%clk 00:17:41]} {[%emt 00:00:50]} Qa7
{[%clk 00:14:29]} {[%emt 00:01:58]} 15. Ba5 {[%clk 00:15:11]} {[%emt 00:02:34]}
Rfc8 {[%clk 00:09:53]} {[%emt 00:04:41]} 16. Qb3 {[%clk 00:14:26]} {[%emt
00:00:51]} b5 {[%clk 00:08:26]} {[%emt 00:01:31]} 17. Nc3 {[%clk 00:13:22]}
{[%emt 00:01:09]} Nb6 {[%clk 00:07:34]} {[%emt 00:00:57]} 18. Bxb6 {[%clk
00:09:21]} {[%emt 00:04:05]} Qxb6 {[%clk 00:07:34]} {[%emt 00:00:05]} 19. Na4
{[%clk 00:08:04]} {[%emt 00:01:22]} Qa5 {[%clk 00:06:44]} {[%emt 00:00:56]} 20.
Nc3 {[%clk 00:05:45]} {[%emt 00:02:24]} Nd7 {[%clk 00:05:59]} {[%emt 00:00:50]}
21. Qa2 {[%clk 00:04:12]} {[%emt 00:01:38]} Qd8 {[%clk 00:04:47]} {[%emt
00:01:16]} 22. b3 {[%clk 00:02:39]} {[%emt 00:01:39]} Nb6 {[%clk 00:04:31]}
{[%emt 00:00:21]} 23. Qb2 {[%clk 00:02:23]} {[%emt 00:00:20]} Qe7 {[%clk
00:04:21]} {[%emt 00:00:16]} 24. Nb1 {[%clk 00:01:39]} {[%emt 00:00:49]} a5
{[%clk 00:03:08]} {[%emt 00:01:18]} 25. Rxc8+ {[%clk 00:01:35]} {[%emt
00:00:09]} Rxc8 {[%clk 00:03:10]} {[%emt 00:00:03]} 26. Rc1 {[%clk 00:01:32]}
{[%emt 00:00:08]} Rxc1+ {[%clk 00:02:47]} {[%emt 00:00:28]} 27. Qxc1 {[%clk
00:01:36]} {[%emt 00:00:01]} a4 {[%clk 00:02:08]} {[%emt 00:00:44]} 28. Qc6
{[%clk 00:00:34]} {[%emt 00:01:07]} Nd7 {[%clk 00:00:40]} {[%emt 00:01:33]} 29.
b4 {[%clk 00:00:16]} {[%emt 00:00:23]} Nb8 {[%clk 00:00:09]} {[%emt 00:00:28]}
30. Qxb5 {[%clk 00:00:17]} {[%emt 00:00:11]} Qc7 {[%clk 00:00:11]} {[%emt
00:00:03]} 31. Qf1 {[%clk 00:00:06]} {[%emt 00:00:16]} Qc2 {[%clk 00:00:11]}
{[%emt 00:00:05]} 32. Nbd2 {[%clk 00:00:07]} {[%emt 00:00:05]} Qc3 {[%clk
00:00:11]} {[%emt 00:00:05]} 33. h3 {[%clk 00:00:10]} {[%emt 00:00:02]} Qxa3
{[%clk 00:00:12]} {[%emt 00:00:03]} 34. Qb5 {[%clk 00:00:07]} {[%emt 00:00:08]}
Qxb4 {[%clk 00:00:16]} {[%emt 00:00:01]} 35. Qe8+ {[%clk 00:00:11]} {[%emt
00:00:02]} Bf8 {[%clk 00:00:19]} {[%emt 00:00:02]} 36. Ne5 {[%clk 00:00:08]}
{[%emt 00:00:08]} Qb7 {[%clk 00:00:20]} {[%emt 00:00:04]} 37. Ndf3 {[%clk
00:00:09]} {[%emt 00:00:04]} a3 {[%clk 00:00:24]} {[%emt 00:00:01]} 38. Ng5
{[%clk 00:00:12]} a2 {[%clk 00:00:07]} {[%emt 00:00:21]} 39. Nxe6 {[%emt
00:00:12]} fxe6 {[%clk 00:00:00]} {[%emt 00:00:06]} 40. Qxe6+ {[%emt 00:00:06]}
1-0



[ePGN "0.1;DGT LiveChess/2.2.6"]

[Event "MČR mládeže v rapid šachu 2024 H10"]
[Site "Harrachov, Czech Republic"]
[Date "????.??.??"]
[Round "1.5"]
[White "Sromek Sebastian"]
[Black "Hlavacek Pavel"]
[Result "0-1"]
[TimeControl "20+5"]
[WhiteFideId "23775122"]
[BlackFideId "23761768"]
[WhiteElo "1525"]
[BlackElo "1641"]

1. e4 c6 2. d4 d5 3. Nc3 dxe4 4. Nxe4 {[%clk 00:20:05]} Bf5 {[%clk 00:20:15]}
{[%emt 00:08:24]} 5. Ng3 {[%clk 00:19:54]} {[%emt 00:00:11]} Bg6 {[%clk
00:20:18]} {[%emt 00:00:03]} 6. Nf3 {[%clk 00:19:40]} {[%emt 00:00:19]} Nd7
{[%clk 00:20:00]} {[%emt 00:00:23]} 7. Bc4 {[%clk 00:19:03]} {[%emt 00:00:43]}
e6 {[%clk 00:19:03]} {[%emt 00:01:01]} 8. Bf4 {[%clk 00:17:56]} {[%emt
00:01:10]} Ngf6 {[%clk 00:18:25]} {[%emt 00:00:44]} 9. O-O {[%clk 00:17:19]}
{[%emt 00:00:43]} Be7 {[%clk 00:18:19]} {[%emt 00:00:11]} 10. Re1 {[%clk
00:17:02]} {[%emt 00:00:21]} O-O {[%clk 00:17:50]} {[%emt 00:00:34]} 11. Qd2
{[%emt 00:01:16]} Nd5 {[%clk 00:14:42]} {[%emt 00:02:08]} 12. Bxd5 {[%clk
00:15:45]} {[%emt 00:01:16]} cxd5 {[%clk 00:14:38]} {[%emt 00:00:10]} 13. Ne5
{[%clk 00:15:25]} {[%emt 00:00:25]} Nxe5 {[%clk 00:14:26]} {[%emt 00:00:17]} 14.
Bxe5 {[%clk 00:15:19]} {[%emt 00:00:10]} Rc8 {[%clk 00:14:16]} {[%emt
00:00:15]} 15. c3 {[%clk 00:14:55]} {[%emt 00:00:29]} b5 {[%clk 00:13:33]}
{[%emt 00:00:48]} 16. a3 {[%clk 00:14:26]} {[%emt 00:00:35]} a5 {[%clk
00:12:59]} {[%emt 00:00:40]} 17. Ne2 {[%clk 00:13:22]} {[%emt 00:01:08]} Bg5
{[%clk 00:11:30]} {[%emt 00:01:33]} 18. Bf4 {[%clk 00:12:51]} {[%emt 00:00:36]}
Be7 {[%clk 00:10:10]} {[%emt 00:01:25]} 19. h3 {[%clk 00:12:07]} {[%emt
00:00:49]} b4 {[%clk 00:09:06]} {[%emt 00:01:10]} 20. axb4 {[%clk 00:11:51]}
{[%emt 00:00:21]} axb4 {[%clk 00:09:10]} {[%emt 00:00:01]} 21. Ra4 {[%clk
00:11:10]} {[%emt 00:00:45]} Rc4 {[%clk 00:04:31]} {[%emt 00:04:44]} 22. Rea1
{[%clk 00:10:53]} {[%emt 00:00:20]} bxc3 {[%clk 00:04:21]} {[%emt 00:00:18]} 23.
bxc3 {[%clk 00:10:50]} {[%emt 00:00:08]} Rxa4 {[%emt 00:00:13]} 24. Rxa4 {[%clk
00:10:50]} {[%emt 00:00:04]} Qb6 {[%clk 00:03:55]} {[%emt 00:00:22]} 25. Qa2
{[%clk 00:10:04]} {[%emt 00:00:52]} Rc8 {[%clk 00:02:36]} {[%emt 00:01:23]} 26.
Ra8 {[%clk 00:10:00]} {[%emt 00:00:11]} Rxa8 {[%clk 00:02:00]} {[%emt
00:00:41]} 27. Qxa8+ {[%clk 00:10:01]} {[%emt 00:00:03]} Qd8 {[%clk 00:02:02]}
{[%emt 00:00:02]} 28. Qxd8+ {[%clk 00:09:53]} {[%emt 00:00:14]} Bxd8 {[%clk
00:02:07]} 29. Kf1 {[%clk 00:09:53]} {[%emt 00:00:04]} Kf8 {[%clk 00:02:00]}
{[%emt 00:00:13]} 30. Ke1 {[%clk 00:09:48]} {[%emt 00:00:10]} Ke7 {[%clk
00:01:47]} {[%emt 00:00:17]} 31. Kd2 {[%clk 00:09:40]} {[%emt 00:00:14]} Kd7
{[%clk 00:01:40]} {[%emt 00:00:10]} 32. Nc1 {[%clk 00:09:26]} {[%emt 00:00:20]}
Kc6 {[%clk 00:01:35]} {[%emt 00:00:09]} 33. Nb3 {[%clk 00:09:28]} {[%emt
00:00:04]} Kb5 {[%clk 00:01:29]} {[%emt 00:00:10]} 34. Nc5 {[%clk 00:09:25]}
{[%emt 00:00:09]} Kc4 {[%clk 00:01:06]} {[%emt 00:00:26]} 35. Nb7 {[%clk
00:09:16]} {[%emt 00:00:16]} Bb6 {[%clk 00:01:01]} {[%emt 00:00:04]} 36. Nd6+
{[%clk 00:09:18]} {[%emt 00:00:09]} Kb3 {[%clk 00:01:04]} {[%emt 00:00:03]} 37.
Nb5 {[%clk 00:08:57]} {[%emt 00:00:26]} Ba5 {[%clk 00:00:37]} {[%emt 00:00:31]}
38. f3 {[%clk 00:08:38]} {[%emt 00:00:25]} f6 {[%clk 00:00:37]} {[%emt
00:00:04]} 39. Bd6 {[%clk 00:08:37]} {[%emt 00:00:07]} Be8 {[%clk 00:00:38]}
{[%emt 00:00:04]} 40. Nc7 {[%clk 00:08:34]} {[%emt 00:00:08]} Bxc3+ {[%clk
00:00:37]} {[%emt 00:00:07]} 41. Kd3 {[%clk 00:08:38]} {[%emt 00:00:01]} Bg6
{[%clk 00:00:38]} {[%emt 00:00:03]} 42. Ke2 {[%clk 00:08:39]} {[%emt 00:00:03]}
Bf7 {[%clk 00:00:33]} {[%emt 00:00:09]} 43. Bf8 {[%clk 00:08:35]} {[%emt
00:00:11]} g6 {[%clk 00:00:33]} {[%emt 00:00:04]} 44. Nb5 {[%clk 00:08:34]}
{[%emt 00:00:06]} Bb2 {[%clk 00:00:18]} {[%emt 00:00:20]} 45. Kd3 {[%clk
00:08:25]} {[%emt 00:00:14]} g5 {[%clk 00:00:17]} {[%emt 00:00:06]} 46. Bg7
{[%clk 00:08:25]} {[%emt 00:00:05]} f5 {[%clk 00:00:17]} {[%emt 00:00:05]} 47.
Bh6 {[%clk 00:08:27]} {[%emt 00:00:03]} g4 {[%clk 00:00:18]} {[%emt 00:00:04]}
48. hxg4 {[%clk 00:08:30]} {[%emt 00:00:02]} fxg4 {[%clk 00:00:22]} 49. fxg4
{[%clk 00:08:34]} {[%emt 00:00:02]} Bg6 {[%clk 00:00:21]} {[%emt 00:00:06]} 50.
Ke3 {[%clk 00:08:36]} {[%emt 00:00:02]} Be4 {[%clk 00:00:17]} {[%emt 00:00:09]}
51. g3 {[%clk 00:08:35]} {[%emt 00:00:06]} Bc1 {[%clk 00:00:20]} {[%emt
00:00:03]} 52. Ke2 {[%clk 00:08:38]} {[%emt 00:00:02]} Kc2 {[%clk 00:00:18]}
{[%emt 00:00:06]} 53. Nd6 {[%clk 00:08:38]} {[%emt 00:00:06]} Bd3 {[%clk
00:00:22]} {[%emt 00:00:02]} 54. Kf3 {[%clk 00:08:39]} {[%emt 00:00:04]} Kd1
{[%clk 00:00:14]} {[%emt 00:00:13]} 55. Bxc1 {[%clk 00:08:41]} {[%emt
00:00:03]} Kxc1 {[%clk 00:00:18]} {[%emt 00:00:01]} 56. Nf7 {[%clk 00:08:38]}
{[%emt 00:00:08]} Kc2 {[%clk 00:00:14]} {[%emt 00:00:09]} 57. Ng5 {[%clk
00:08:40]} {[%emt 00:00:01]} Kc3 {[%clk 00:00:17]} {[%emt 00:00:04]} 58. Nxe6
{[%clk 00:08:43]} {[%emt 00:00:02]} Bg6 {[%clk 00:00:19]} {[%emt 00:00:02]} 59.
Ke3 {[%clk 00:08:40]} {[%emt 00:00:09]} Kc4 {[%clk 00:00:12]} {[%emt 00:00:12]}
60. Nf4 {[%clk 00:08:42]} {[%emt 00:00:03]} Be4 {[%clk 00:00:13]} {[%emt
00:00:02]} 61. Ne6 {[%clk 00:08:41]} {[%emt 00:00:07]} Kc3 {[%clk 00:00:15]}
{[%emt 00:00:04]} 62. Nc5 {[%clk 00:08:40]} {[%emt 00:00:06]} Bg2 {[%clk
00:00:14]} {[%emt 00:00:04]} 63. Ne6 {[%clk 00:08:25]} {[%emt 00:00:22]} Be4
{[%clk 00:00:12]} {[%emt 00:00:07]} 64. Ng5 {[%clk 00:08:28]} {[%emt 00:00:02]}
Bg6 {[%clk 00:00:15]} {[%emt 00:00:01]} 65. Nf3 {[%clk 00:08:28]} {[%emt
00:00:06]} Be4 {[%clk 00:00:15]} {[%emt 00:00:06]} 66. Ne5 {[%clk 00:08:23]}
{[%emt 00:00:10]} Kc2 {[%clk 00:00:17]} {[%emt 00:00:03]} 67. Nd7 {[%clk
00:08:16]} {[%emt 00:00:09]} Bg6 {[%clk 00:00:10]} {[%emt 00:00:14]} 68. Ne5
{[%clk 00:08:08]} {[%emt 00:00:13]} Be4 {[%clk 00:00:14]} 69. Nc6 {[%clk
00:08:05]} {[%emt 00:00:08]} Kd1 {[%clk 00:00:15]} {[%emt 00:00:04]} 70. Kf2
{[%clk 00:08:07]} {[%emt 00:00:04]} Kd2 {[%clk 00:00:17]} {[%emt 00:00:02]} 71.
Kf1 {[%clk 00:08:05]} {[%emt 00:00:07]} Ke3 {[%clk 00:00:19]} {[%emt 00:00:03]}
72. Kg1 {[%clk 00:08:04]} {[%emt 00:00:55]} Kf3 {[%clk 00:01:15]} {[%emt
00:00:07]} 73. Ne5+ {[%clk 00:07:51]} {[%emt 00:00:19]} Kxg3 {[%clk 00:01:14]}
{[%emt 00:00:06]} 74. Kf1 {[%clk 00:07:46]} {[%emt 00:00:09]} Bf3 {[%clk
00:00:57]} {[%emt 00:00:21]} 75. Ke1 {[%clk 00:07:38]} {[%emt 00:00:13]} Bxg4
{[%clk 00:00:58]} {[%emt 00:00:05]} 76. Nxg4 {[%clk 00:07:41]} {[%emt
00:00:02]} Kxg4 {[%clk 00:01:02]} {[%emt 00:00:01]} 77. Kf2 {[%clk 00:07:45]}
Kf4 {[%clk 00:01:04]} {[%emt 00:00:04]} 78. Ke2 {[%clk 00:07:48]} {[%emt
00:00:02]} h5 {[%clk 00:01:08]} {[%emt 00:00:01]} 79. Kf2 {[%clk 00:07:52]}
{[%emt 00:00:02]} Ke4 {[%clk 00:01:10]} {[%emt 00:00:03]} 80. Kg3 {[%clk
00:07:56]} {[%emt 00:00:02]} Kxd4 {[%clk 00:01:13]} {[%emt 00:00:01]} 81. Kh4
{[%clk 00:08:00]} {[%emt 00:00:01]} Ke3 {[%clk 00:01:17]} {[%emt 00:00:01]} 82.
Kxh5 {[%emt 00:00:02]} d4 83. Kg4 {[%clk 00:08:06]} {[%emt 00:00:01]} d3 {[%clk
00:01:25]} {[%emt 00:00:01]} 84. Kf5 {[%clk 00:08:10]} {[%emt 00:00:01]} d2
{[%clk 00:01:30]} 85. Ke5 {[%clk 00:08:13]} {[%emt 00:00:01]} d1=Q {[%clk
00:01:32]} {[%emt 00:00:02]} 86. Kf5 {[%clk 00:08:16]} {[%emt 00:00:02]} Qd5+
{[%clk 00:01:33]} {[%emt 00:00:04]} 87. Kg4 {[%clk 00:08:19]} {[%emt 00:00:01]}
Qf7 {[%clk 00:01:37]} {[%emt 00:00:01]} 88. Kg5 {[%clk 00:08:22]} {[%emt
00:00:02]} Ke4 {[%clk 00:01:41]} {[%emt 00:00:02]} 89. Kg4 {[%clk 00:08:25]}
{[%emt 00:00:02]} Qf4 {[%clk 00:01:44]} {[%emt 00:00:01]} 90. Kh5 {[%clk
00:08:28]} {[%emt 00:00:02]} Qg3 {[%clk 00:01:48]} {[%emt 00:00:01]} 91. Kh6
{[%clk 00:08:31]} {[%emt 00:00:02]} Kf5 {[%clk 00:01:48]} {[%emt 00:00:06]} 92.
Kh7 {[%clk 00:08:32]} {[%emt 00:00:03]} Kf6 {[%clk 00:01:52]} {[%emt 00:00:01]}
93. Kh8 {[%clk 00:08:34]} {[%emt 00:00:03]} Qg7# {[%clk 00:01:56]} {[%emt
00:00:01]} 0-1



[ePGN "0.1;DGT LiveChess/2.2.6"]